bitfinex-derivatives/quotes_BTCF0:USTF0_20260314
["timestamp","ask_amount","ask_price","bid_price","bid_amount"]
[1773516728890,0.0014,70729.0,70718.0,0.0096331]
[1773516729287,0.0014,70728.0,70718.0,0.0096331]
[1773516729690,0.043408,70730.0,70718.0,0.0096331]
[1773516729891,0.0014,70729.0,70718.0,0.0096331]
[1773516730192,0.043408,70730.0,70718.0,0.0096331]
[1773516730385,0.0014,70729.0,70718.0,0.0096331]
[1773516731191,0.0024,70729.0,70718.0,0.0096331]
[1773516731391,0.001,70729.0,70718.0,0.0096331]
[1773516731592,0.0024,70729.0,70718.0,0.0096331]
[1773516733394,0.001,70729.0,70718.0,0.0096331]
[1773516733597,0.0024,70729.0,70718.0,0.0096331]
[1773516734894,0.001,70729.0,70718.0,0.0096331]
[1773516735094,0.0024,70729.0,70718.0,0.0096331]
[1773516736390,0.001,70729.0,70718.0,0.0096331]
[1773516736591,0.0024,70729.0,70718.0,0.0096331]
[1773516744395,0.001,70729.0,70718.0,0.0096331]
[1773516744596,0.0024,70729.0,70718.0,0.0096331]
[1773516744901,0.001,70729.0,70718.0,0.0096331]
[1773516745099,0.0024,70729.0,70718.0,0.0096331]
[1773516746305,0.001,70729.0,70718.0,0.0096331]
[1773516746499,0.0024,70729.0,70718.0,0.0096331]
[1773516746802,0.043409,70729.0,70718.0,0.0096331]
[1773516746998,0.044809,70729.0,70718.0,0.0096331]
[1773516749306,0.043409,70729.0,70718.0,0.0096331]
[1773516749499,0.044809,70729.0,70718.0,0.0096331]
[1773516750006,0.043809,70729.0,70718.0,0.0096331]
[1773516751611,0.042409,70729.0,70718.0,0.0096331]
[1773516752609,0.042409,70729.0,70717.0,0.042415]
[1773516753107,0.043809,70729.0,70717.0,0.042415]
[1773516756209,0.042409,70729.0,70717.0,0.042415]
[1773516757814,0.0014,70728.0,70717.0,0.042415]
[1773516765018,0.042409,70729.0,70717.0,0.042415]
[1773516766324,0.0014,70728.0,70717.0,0.042415]
[1773516768826,0.043809,70728.0,70717.0,0.042415]
[1773516773130,0.042409,70728.0,70717.0,0.042415]
[1773516773333,0.043809,70728.0,70717.0,0.042415]
[1773516779536,0.043809,70728.0,70715.0,0.042417]
[1773516782334,0.0014,70728.0,70708.0,0.053671]
[1773516782540,0.07384715,70720.0,70708.0,0.01125]
[1773516782748,0.00903271,70722.0,70708.0,0.01125]
[1773516782749,0.0014,70721.0,70708.0,0.01125]
[1773516783230,0.042415,70719.0,70708.0,0.01125]
[1773516784141,0.0014,70721.0,70708.0,0.01125]
[1773516784142,0.042416,70717.0,70708.0,0.01125]
[1773516784330,0.042415,70719.0,70705.0,0.0005858]
[1773516784737,0.042415,70719.0,70705.0,0.0019858]
[1773516785142,0.042415,70719.0,70708.0,0.01125]
[1773516788436,0.0014,70721.0,70708.0,0.01125]
[1773516788644,0.042415,70719.0,70708.0,0.01125]
[1773516792945,0.042415,70718.0,70708.0,0.01125]
[1773516793745,0.01043271,70721.0,70708.0,0.01125]
[1773516793746,0.042414,70720.0,70708.0,0.01125]
[1773516800449,0.042414,70720.0,70708.0,0.053671]
[1773516805355,0.0514547,70719.0,70708.0,0.01125]
[1773516807351,0.0514547,70719.0,70708.0,0.053671]
[1773516809656,0.042415,70719.0,70708.0,0.053671]
[1773516813650,0.043814,70721.0,70708.0,0.053671]
[1773516813851,0.042414,70721.0,70708.0,0.053671]
[1773516818360,0.042414,70720.0,70708.0,0.053671]
[1773516818551,0.0090397,70719.0,70708.0,0.053671]
[1773516823865,0.042414,70720.0,70708.0,0.053671]
[1773516835182,0.042414,70720.0,70709.0,0.04242]
[1773516851301,0.042413,70722.0,70709.0,0.04242]
[1773516851894,0.042414,70721.0,70709.0,0.04242]
[1773516859602,0.042414,70720.0,70709.0,0.04242]
[1773516862208,0.042414,70720.0,70708.0,0.01125]
[1773516868513,0.042414,70720.0,70708.0,0.053671]
[1773516878128,0.042415,70719.0,70708.0,0.01125]
[1773516879321,0.042415,70719.0,70708.0,0.053671]
[1773516885927,0.0014,70722.0,70708.0,0.053671]
[1773516885928,0.00911224,70717.0,70708.0,0.00299303]
[1773516886126,0.00911224,70717.0,70706.0,0.042422]
[1773516886825,0.00911224,70717.0,70697.0,0.00924433]
[1773516887033,0.042419,70712.0,70700.0,0.042426]
[1773516887630,0.0014,70711.0,70705.0,0.01126]
[1773516888129,0.01126,70707.0,70705.0,0.01126]
[1773516888332,0.0014,70711.0,70705.0,0.01126]
[1773516888734,0.0014,70711.0,70700.0,0.042426]
[1773516889834,0.0014,70711.0,70700.0,0.053686]
[1773516891233,0.04185103,70712.0,70700.0,0.053686]
[1773516892432,0.0014,70711.0,70700.0,0.053686]
[1773516904745,0.0014,70711.0,70700.0,0.01126]
[1773516904948,0.042421,70708.0,70700.0,0.01126]
[1773516908852,0.08355664,70710.0,70700.0,0.01126]
[1773516909052,0.042423,70705.0,70692.0,0.04243]
[1773516909847,0.0014,70705.0,70692.0,0.04243]
[1773516910650,0.0014,70705.0,70697.0,0.01126]
[1773516911055,0.043823,70705.0,70697.0,0.01126]
[1773516911355,0.01126,70700.0,70697.0,0.01126]
[1773516912645,0.01126,70700.0,70686.0,0.01107001]
[1773516912851,0.00966588,70704.0,70686.0,0.0014]
[1773516913056,0.042427,70699.0,70684.0,0.0014]
[1773516913251,0.0014,70698.0,70684.0,0.0014]
[1773516913945,0.0014,70698.0,70687.0,0.042433]
[1773516914550,0.0014,70698.0,70688.0,0.042433]
[1773516914860,0.0014,70698.0,70681.0,0.0007074]
[1773516915050,0.042432,70691.0,70681.0,0.0007074]
[1773516915252,0.0014,70690.0,70681.0,0.0007074]
[1773516915452,0.043832,70690.0,70681.0,0.0007074]
[1773516916048,0.0014,70690.0,70681.0,4e-07]
[1773516916256,0.043832,70690.0,70681.0,4e-07]
[1773516916554,0.042433,70689.0,70681.0,4e-07]
[1773516916959,0.042433,70689.0,70682.0,0.00058582]
[1773516920252,0.2027665,70688.0,70682.0,0.00058582]
[1773516920452,0.2027665,70688.0,70681.0,4e-07]
[1773516920453,0.2027665,70687.0,70681.0,4e-07]
[1773516920654,0.2027665,70686.0,70681.0,4e-07]
[1773516920958,0.042433,70689.0,70681.0,4e-07]
[1773516921160,0.2027665,70688.0,70681.0,4e-07]
[1773516921458,0.2027665,70687.0,70681.0,4e-07]
[1773516921658,0.042433,70689.0,70681.0,4e-07]
[1773516921859,0.20272389,70688.0,70681.0,4e-07]
[1773516922054,0.20272389,70687.0,70681.0,4e-07]
[1773516922359,0.042433,70689.0,70681.0,4e-07]
[1773516922561,0.20268975,70688.0,70681.0,4e-07]
[1773516922749,0.20268975,70687.0,70681.0,4e-07]
[1773516922950,0.042433,70689.0,70681.0,4e-07]
[1773516923148,0.20268975,70688.0,70681.0,4e-07]
[1773516923358,0.042428,70698.0,70684.0,0.00976611]
[1773516923552,0.00013605,70717.0,70690.0,0.042431]
[1773516923553,0.0014,70699.0,70690.0,0.042431]
[1773516923754,0.0014,70700.0,70691.0,0.00976611]
[1773516923957,0.0014,70700.0,70688.0,0.07389076]
[1773516923958,0.00013605,70716.0,70692.0,0.01116611]
[1773516924159,0.0014,70715.0,70692.0,0.01116611]
[1773516924360,0.0014,70715.0,70695.0,0.00976611]
[1773516924555,0.042421,70708.0,70695.0,0.00976611]
[1773516924758,0.0014,70707.0,70702.0,0.01126]
[1773516925864,0.0014,70709.0,70702.0,0.01126]
[1773516926264,0.043821,70709.0,70696.0,0.042428]
[1773516926566,0.043821,70709.0,70696.0,0.05219411]
[1773516927564,0.043821,70709.0,70701.0,0.01126]
[1773516928054,0.042422,70708.0,70701.0,0.01126]
[1773516961399,0.0014,70709.0,70701.0,0.01126]
[1773516961999,0.042417,70715.0,70701.0,0.01126]
[1773516962201,0.0014,70714.0,70701.0,0.01126]
[1773516962595,0.042417,70715.0,70701.0,0.01126]
[1773516962803,0.0014,70714.0,70701.0,0.02050919]
[1773516963103,0.043818,70714.0,70702.0,0.042424]
[1773516964506,0.043818,70714.0,70701.0,0.02050919]
[1773516964706,0.042418,70713.0,70701.0,0.02050919]
[1773516969408,0.042418,70713.0,70701.0,0.01126]
[1773516975925,0.0014,70714.0,70701.0,0.01126]
[1773516976218,0.042416,70718.0,70701.0,0.02050919]
[1773516976420,0.0014,70718.0,70702.0,0.00924919]
[1773516976608,0.0014,70717.0,70706.0,0.042422]
[1773516977021,0.0014,70717.0,70702.0,0.00924919]
[1773516977022,0.043816,70717.0,70704.0,0.042423]
[1773516977523,0.043816,70717.0,70705.0,0.042423]
[1773516979625,0.00992142,70716.0,70701.0,0.01126]
[1773516979927,0.00992142,70706.0,70694.0,0.042429]
[1773516980321,0.042426,70701.0,70692.0,0.0014]
[1773516980630,0.042426,70701.0,70690.0,0.0014]
[1773516981232,0.042426,70701.0,70689.0,0.0014]
[1773516981423,0.042426,70700.0,70688.0,0.042433]
[1773516981726,0.01126,70701.0,70688.0,0.042433]
[1773516982023,0.00998126,70700.0,70685.0,0.0014]
[1773516982222,0.00998126,70700.0,70681.0,0.00057171]
[1773516982413,0.0014,70707.0,70686.0,0.042434]
[1773516982414,0.05240826,70699.0,70686.0,0.042434]
[1773516982818,0.05240826,70699.0,70686.0,0.043834]
[1773516983220,0.05240826,70699.0,70686.0,0.042434]
[1773516983427,0.05240826,70699.0,70686.0,0.043834]
[1773516983831,0.05240826,70699.0,70686.0,0.042434]
[1773516984025,0.05240826,70699.0,70686.0,0.043834]
[1773516985819,0.05240826,70699.0,70686.0,0.042434]
[1773516986024,0.05240826,70699.0,70686.0,0.043834]
[1773516986334,0.05240826,70699.0,70686.0,0.042434]
[1773516986528,0.05240826,70699.0,70686.0,0.043834]
[1773516986831,0.05240826,70699.0,70686.0,0.042434]
[1773516987030,0.00998126,70698.0,70686.0,0.043834]
[1773516987331,0.00998126,70698.0,70686.0,0.042434]
[1773516987530,0.00998126,70698.0,70686.0,0.043834]
[1773516987831,0.00998126,70698.0,70686.0,0.042434]
[1773516988026,0.00998126,70698.0,70686.0,0.043834]
[1773516994233,0.05240826,70698.0,70686.0,0.043834]
[1773516994426,0.05240826,70698.0,70686.0,0.042434]
[1773516994626,0.05240826,70698.0,70686.0,0.043834]
[1773516994932,0.05240826,70698.0,70686.0,0.042434]
[1773516995131,0.05240826,70698.0,70686.0,0.043834]
[1773516995430,0.05240826,70698.0,70686.0,0.042434]
[1773516995631,0.05240826,70698.0,70686.0,0.043834]
[1773516996233,0.05240826,70698.0,70686.0,0.042434]
[1773516997132,0.05240826,70698.0,70686.0,0.043834]
[1773516997332,0.05240826,70698.0,70686.0,0.042434]
[1773516997535,0.05240826,70698.0,70686.0,0.043834]
[1773516998829,0.05240826,70698.0,70686.0,0.042434]
[1773516999039,0.05240826,70698.0,70686.0,0.043834]
[1773516999230,0.042427,70698.0,70686.0,0.043834]
[1773516999434,0.042427,70698.0,70686.0,0.042434]
[1773516999628,0.042427,70698.0,70686.0,0.043834]
[1773517000528,0.042428,70697.0,70684.0,0.042435]
[1773517000728,0.042428,70697.0,70685.0,0.0014]
[1773517001129,0.042428,70697.0,70686.0,0.0014]
[1773517001538,0.042428,70697.0,70684.0,0.042435]
[1773517001732,0.042428,70697.0,70685.0,0.0014]
[1773517002038,0.042428,70697.0,70684.0,0.042435]
[1773517002232,0.042428,70697.0,70685.0,0.0014]
[1773517002431,0.042428,70697.0,70685.0,0.043835]
[1773517002639,0.042428,70697.0,70686.0,0.0014]
[1773517003032,0.042428,70697.0,70685.0,0.042435]
[1773517003632,0.042428,70697.0,70686.0,0.0014]
[1773517004136,0.042426,70700.0,70688.0,0.042433]
[1773517004334,0.0014,70701.0,70689.0,0.042432]
[1773517004734,0.043826,70701.0,70689.0,0.042432]
[1773517010236,0.01126,70703.0,70686.0,0.0014]
[1773517010237,0.053685,70703.0,70690.0,0.00992872]
[1773517011041,0.042426,70701.0,70689.0,0.042432]
[1773517024058,0.042425,70702.0,70690.0,0.042432]
[1773517034353,0.01126,70703.0,70690.0,0.07390459]
[1773517034666,0.01126,70703.0,70693.0,0.04243]
[1773517035166,0.01126,70703.0,70693.0,0.04383]
[1773517042267,0.01126,70703.0,70694.0,0.042429]
[1773517042464,0.01126,70703.0,70696.0,0.042428]
[1773517042665,0.042422,70707.0,70696.0,0.042428]
[1773517042860,0.042421,70709.0,70696.0,0.042428]
[1773517043262,0.05224227,70709.0,70696.0,0.042428]
[1773517043673,0.042422,70708.0,70701.0,0.01126]
[1773517043866,0.042422,70707.0,70701.0,0.01126]
[1773517044273,0.01126,70704.0,70701.0,0.01126]
[1773517046465,0.01126,70704.0,70694.0,0.042429]
[1773517046671,0.042422,70707.0,70694.0,0.042429]
[1773517048579,0.053682,70707.0,70695.0,0.042428]
[1773517051274,0.01126,70707.0,70696.0,0.042428]
[1773517052780,0.01266,70707.0,70696.0,0.042428]
[1773517053081,0.01126,70707.0,70696.0,0.042428]
[1773517056882,0.053682,70707.0,70694.0,0.042429]
[1773517057085,0.053682,70707.0,70695.0,0.042429]
[1773517062688,0.01126,70707.0,70693.0,0.01093304]
[1773517062988,0.01126,70707.0,70694.0,0.00953304]
[1773517063989,0.01126,70707.0,70697.0,0.042427]
[1773517064988,0.01126,70707.0,70694.0,0.00953304]
[1773517065384,0.00726,70707.0,70694.0,0.00953304]
[1773517065586,0.00326,70707.0,70694.0,0.00953304]
[1773517065789,0.0014,70712.0,70694.0,0.00953304]
[1773517066591,0.00982127,70717.0,70694.0,0.00953304]
[1773517066985,0.042419,70712.0,70699.0,0.042426]
[1773517067588,0.043819,70712.0,70699.0,0.042426]
[1773517067990,0.01126,70707.0,70699.0,0.042426]
[1773517068991,0.043819,70712.0,70699.0,0.042426]
[1773517069789,0.043819,70712.0,70702.0,0.01126]
[1773517070488,0.01126,70704.0,70702.0,0.01126]
[1773517070689,0.043819,70712.0,70702.0,0.01126]
[1773517071091,0.043819,70712.0,70699.0,0.042426]
[1773517071992,0.043819,70712.0,70699.0,0.053686]
[1773517076792,0.042416,70717.0,70704.0,0.042423]
[1773517077095,0.0014,70716.0,70701.0,0.00917451]
[1773517077593,0.042416,70717.0,70701.0,0.00917451]
[1773517077898,0.0014,70716.0,70701.0,0.00917451]
[1773517078386,0.042416,70717.0,70701.0,0.00917451]
[1773517078895,0.043817,70716.0,70703.0,0.042424]
[1773517079296,0.0014,70715.0,70703.0,0.042424]
[1773517079597,0.043817,70715.0,70703.0,0.042424]
[1773517080097,0.0014,70715.0,70704.0,0.042423]
[1773517080994,0.042417,70716.0,70704.0,0.042423]
[1773517081194,0.0014,70715.0,70704.0,0.042423]
[1773517081397,0.043817,70715.0,70702.0,0.042425]
[1773517081997,0.042417,70715.0,70702.0,0.042425]
[1773517082198,0.043817,70715.0,70702.0,0.042425]
[1773517082498,0.042417,70715.0,70702.0,0.042425]
[1773517082700,0.043817,70715.0,70702.0,0.042425]
[1773517082998,0.042417,70715.0,70702.0,0.042425]
[1773517083198,0.043817,70715.0,70702.0,0.042425]
[1773517083507,0.042417,70715.0,70702.0,0.042425]
[1773517083694,0.042416,70718.0,70704.0,0.042423]
[1773517083893,0.042416,70718.0,70701.0,0.00917451]
[1773517083894,0.0014,70717.0,70705.0,0.042423]
[1773517084592,0.042416,70718.0,70705.0,0.042423]
[1773517084985,0.0014,70717.0,70705.0,0.042423]
[1773517085187,0.043816,70717.0,70705.0,0.042423]
[1773517088003,0.042416,70717.0,70705.0,0.042423]
[1773517088198,0.043816,70717.0,70705.0,0.042423]
[1773517088502,0.042416,70717.0,70705.0,0.042423]
[1773517088695,0.043816,70717.0,70705.0,0.042423]
[1773517090002,0.042416,70717.0,70705.0,0.042423]
[1773517090202,0.043816,70717.0,70705.0,0.042423]
[1773517090498,0.042416,70717.0,70705.0,0.042423]
[1773517090696,0.043816,70717.0,70705.0,0.042423]
[1773517092302,0.042417,70716.0,70703.0,0.042424]
[1773517094005,0.042417,70716.0,70704.0,0.042423]
[1773517098810,0.042417,70716.0,70705.0,0.042423]
[1773517104026,0.042415,70718.0,70705.0,0.042423]
[1773517106526,0.042415,70718.0,70704.0,0.0097468]
[1773517106527,0.042415,70718.0,70706.0,0.043822]
[1773517106726,0.01265,70720.0,70707.0,0.042421]
[1773517106727,0.055064,70720.0,70707.0,0.042421]
[1773517107030,0.042415,70719.0,70707.0,0.042421]
[1773517114036,0.0014,70720.0,70706.0,0.0014]
[1773517114037,0.042415,70718.0,70706.0,0.0014]
[1773517123833,0.042415,70718.0,70706.0,0.043822]
[1773517125645,0.043814,70720.0,70708.0,0.042421]
[1773517126047,0.042414,70720.0,70708.0,0.042421]
[1773517126546,0.042414,70720.0,70706.0,0.0014]
[1773517126547,0.042415,70719.0,70706.0,0.0014]
[1773517126949,0.042415,70719.0,70708.0,0.042421]
[1773517127643,0.042415,70719.0,70707.0,0.042421]
[1773517127947,0.00927126,70723.0,70708.0,0.042421]
[1773517128148,0.0014,70722.0,70708.0,0.042421]
[1773517128345,0.01067126,70722.0,70708.0,0.042421]
[1773517128549,0.042415,70719.0,70708.0,0.042421]
[1773517128951,0.042415,70719.0,70706.0,0.043822]
[1773517129547,0.042415,70718.0,70706.0,0.043822]
[1773517139150,0.042414,70720.0,70706.0,0.0014]
[1773517139757,0.01067126,70721.0,70709.0,0.04242]
[1773517140160,0.05308526,70721.0,70709.0,0.04242]
[1773517140760,0.05168526,70721.0,70709.0,0.04242]
[1773517140949,0.05308526,70721.0,70709.0,0.04242]
[1773517141258,0.05168526,70721.0,70709.0,0.04242]
[1773517141558,0.05308526,70721.0,70709.0,0.04242]
[1773517141760,0.042414,70720.0,70707.0,0.042422]
[1773517142660,0.00927126,70721.0,70706.0,0.0014]
[1773517142870,0.01067126,70721.0,70707.0,0.042421]
[1773517143160,0.01067126,70721.0,70706.0,0.0014]
[1773517143659,0.00927126,70721.0,70706.0,0.0014]
[1773517143959,0.05308526,70721.0,70706.0,0.0014]
[1773517144158,0.05168526,70721.0,70706.0,0.0014]
[1773517144458,0.05308526,70721.0,70706.0,0.0014]
[1773517144659,0.05168526,70721.0,70706.0,0.0014]
[1773517144859,0.05308526,70721.0,70706.0,0.0014]
[1773517145058,0.05308526,70721.0,70708.0,0.042421]
[1773517145661,0.05168526,70721.0,70708.0,0.042421]
[1773517145850,0.05308526,70721.0,70708.0,0.042421]
[1773517146161,0.05168526,70721.0,70708.0,0.042421]
[1773517146363,0.05308526,70721.0,70708.0,0.042421]
[1773517146859,0.042414,70720.0,70708.0,0.042421]
[1773517148663,0.042414,70720.0,70706.0,0.0014]
[1773517149963,0.042414,70720.0,70708.0,0.042421]
[1773517150371,0.01089125,70725.0,70706.0,0.0014]
[1773517150562,0.01125,70728.0,70717.0,0.042416]
[1773517150861,0.0014,70727.0,70717.0,0.042416]
[1773517151062,0.0014,70727.0,70715.0,0.042417]
[1773517151365,0.0014,70727.0,70716.0,0.042416]
[1773517152862,0.0024,70727.0,70716.0,0.042416]
[1773517153565,0.0014,70727.0,70716.0,0.042416]
[1773517154669,0.0014,70727.0,70717.0,0.042415]
[1773517155358,0.04381,70727.0,70715.0,0.042417]
[1773517161867,0.042411,70726.0,70713.0,0.043818]
[1773517162271,0.042411,70726.0,70714.0,0.042417]
[1773517165777,0.00917474,70735.0,70715.0,0.042417]
[1773517166080,0.042409,70728.0,70715.0,0.042417]
[1773517166881,0.043809,70728.0,70715.0,0.042417]
[1773517168680,0.04241,70727.0,70715.0,0.042417]
[1773517190698,0.19864688,70726.0,70715.0,0.042417]
[1773517190898,0.19864688,70725.0,70715.0,0.042417]
[1773517191090,0.19864688,70724.0,70715.0,0.042417]
[1773517191290,0.19864688,70723.0,70715.0,0.042417]
[1773517191490,0.19864688,70722.0,70715.0,0.042417]
[1773517191689,0.19864688,70721.0,70715.0,0.042417]
[1773517191989,0.19864688,70720.0,70715.0,0.042417]
[1773517192190,0.19864688,70719.0,70715.0,0.042417]
[1773517192389,0.19864688,70718.0,70715.0,0.042417]
[1773517192594,0.04241,70727.0,70715.0,0.042417]
[1773517195493,0.04381,70727.0,70715.0,0.042417]
[1773517196799,0.042411,70726.0,70715.0,0.042417]
[1773517202101,0.042411,70726.0,70713.0,0.043818]
[1773517204105,0.042411,70725.0,70713.0,0.043818]
[1773517228738,0.1991861,70724.0,70713.0,0.043818]
[1773517228939,0.1991861,70723.0,70713.0,0.043818]
[1773517229143,0.1991861,70722.0,70713.0,0.043818]
[1773517229341,0.1991861,70721.0,70713.0,0.043818]
[1773517229641,0.1991861,70720.0,70713.0,0.043818]
[1773517229840,0.1991861,70719.0,70713.0,0.043818]
[1773517230036,0.1991861,70718.0,70713.0,0.043818]
[1773517230239,0.1991861,70717.0,70713.0,0.043818]
[1773517230541,1e-07,70716.0,70713.0,0.043818]
[1773517230729,0.042411,70725.0,70713.0,0.043818]
[1773517250242,0.19816435,70724.0,70713.0,0.042418]
[1773517250446,0.19816435,70723.0,70713.0,0.042418]
[1773517250647,0.19816435,70722.0,70713.0,0.043818]
[1773517250842,0.19816435,70721.0,70713.0,0.043818]
[1773517251044,0.19816435,70720.0,70713.0,0.043818]
[1773517251242,0.19816435,70719.0,70713.0,0.043818]
[1773517251544,0.19816435,70718.0,70713.0,0.043818]
[1773517251743,0.19816435,70717.0,70713.0,0.043818]
[1773517251945,3.5e-07,70716.0,70713.0,0.043818]
[1773517252143,0.042411,70725.0,70713.0,0.043818]
[1773517262252,0.0014,70727.0,70713.0,0.0014]
[1773517262253,0.042414,70720.0,70713.0,0.0014]
[1773517262453,0.042413,70722.0,70713.0,0.0014]
[1773517266059,0.042413,70722.0,70709.0,0.04242]
[1773517266252,0.042413,70722.0,70710.0,0.04242]
[1773517266962,0.042413,70722.0,70710.0,0.04382]
[1773517267558,0.042413,70722.0,70711.0,0.042419]
[1773517270560,0.042412,70724.0,70711.0,0.042419]
[1773517271461,0.042412,70723.0,70711.0,0.042419]
[1773517289190,0.1994998,70722.0,70711.0,0.042419]
[1773517289393,0.1994998,70721.0,70711.0,0.042419]
[1773517289589,0.1994998,70720.0,70711.0,0.042419]
[1773517289786,0.1994998,70719.0,70711.0,0.042419]
[1773517289988,0.1994998,70718.0,70711.0,0.042419]
[1773517290292,0.1994998,70717.0,70711.0,0.042419]
[1773517290493,0.1994998,70716.0,70711.0,0.042419]
[1773517290791,0.042412,70723.0,70711.0,0.042419]
[1773517290987,0.19950221,70722.0,70711.0,0.042419]
[1773517291187,0.19950221,70721.0,70711.0,0.042419]
[1773517291389,0.19950221,70720.0,70711.0,0.042419]
[1773517291687,0.19950221,70719.0,70711.0,0.042419]
[1773517291887,0.19950221,70718.0,70711.0,0.042419]
[1773517292193,0.19950221,70717.0,70711.0,0.042419]
[1773517292394,0.19950221,70716.0,70711.0,0.042419]
[1773517292589,0.042412,70723.0,70711.0,0.042419]
[1773517292791,0.19951029,70722.0,70711.0,0.042419]
[1773517292985,0.19951029,70721.0,70711.0,0.042419]
[1773517293188,0.19951029,70720.0,70711.0,0.042419]
[1773517293389,0.19951029,70719.0,70711.0,0.042419]
[1773517293693,0.19951029,70718.0,70711.0,0.042419]
[1773517293892,0.19951029,70717.0,70711.0,0.042419]
[1773517294092,0.042412,70723.0,70711.0,0.042419]
[1773517294292,0.19951033,70722.0,70711.0,0.042419]
[1773517294495,0.19951033,70721.0,70711.0,0.042419]
[1773517294696,0.19951033,70720.0,70711.0,0.042419]
[1773517294895,0.19951033,70719.0,70711.0,0.042419]
[1773517295095,0.19951033,70718.0,70711.0,0.042419]
[1773517295299,0.19951033,70717.0,70711.0,0.042419]
[1773517295596,0.042412,70723.0,70711.0,0.042419]
[1773517295799,0.19951035,70722.0,70711.0,0.042419]
[1773517296096,0.19951035,70721.0,70711.0,0.042419]
[1773517296297,0.19951035,70720.0,70711.0,0.042419]
[1773517296497,0.19951035,70719.0,70711.0,0.042419]
[1773517296695,0.19951035,70718.0,70711.0,0.042419]
[1773517296896,0.19951035,70717.0,70711.0,0.042419]
[1773517297102,0.042412,70723.0,70711.0,0.042419]
[1773517297297,0.19951042,70722.0,70711.0,0.042419]
[1773517297497,0.19951042,70721.0,70711.0,0.042419]
[1773517297697,0.19951042,70720.0,70711.0,0.042419]
[1773517297997,0.19951042,70719.0,70711.0,0.042419]
[1773517298194,0.19951042,70718.0,70711.0,0.042419]
[1773517298394,0.19951042,70717.0,70711.0,0.042419]
[1773517298595,0.042412,70723.0,70711.0,0.042419]
[1773517298795,0.19951098,70722.0,70711.0,0.042419]
[1773517298997,0.19951098,70721.0,70711.0,0.042419]
[1773517299196,0.19951098,70720.0,70711.0,0.042419]
[1773517299396,0.19951098,70719.0,70711.0,0.042419]
[1773517299601,0.19951098,70718.0,70711.0,0.042419]
[1773517299801,0.19951098,70717.0,70711.0,0.042419]
[1773517300001,0.19951098,70716.0,70711.0,0.042419]
[1773517300201,0.19951098,70715.0,70711.0,0.042419]
[1773517300399,0.042412,70723.0,70711.0,0.042419]
[1773517300595,0.19951264,70722.0,70711.0,0.042419]
[1773517300902,0.19951264,70721.0,70711.0,0.042419]
[1773517301104,0.19951264,70720.0,70711.0,0.042419]
[1773517301404,0.19951264,70719.0,70711.0,0.042419]
[1773517301603,0.042412,70723.0,70711.0,0.042419]
[1773517301604,0.19951264,70718.0,70711.0,0.042419]
[1773517301805,0.19951264,70717.0,70711.0,0.042419]
[1773517302007,0.19951264,70716.0,70711.0,0.042419]
[1773517302304,0.19951264,70715.0,70711.0,0.042419]
[1773517302604,0.042412,70723.0,70711.0,0.042419]
[1773517302806,0.19951322,70722.0,70711.0,0.042419]
[1773517303000,0.19951322,70721.0,70711.0,0.042419]
[1773517303203,0.19951322,70720.0,70711.0,0.042419]
[1773517303398,0.19951322,70719.0,70711.0,0.042419]
[1773517303598,0.19951322,70718.0,70711.0,0.042419]
[1773517303801,0.19951322,70717.0,70711.0,0.042419]
[1773517304006,0.19951322,70716.0,70711.0,0.042419]
[1773517304197,0.19951322,70715.0,70711.0,0.042419]
[1773517304398,2.2e-07,70714.0,70711.0,0.042419]
[1773517304599,0.042412,70723.0,70711.0,0.042419]
[1773517314810,0.01125,70728.0,70710.0,0.07525918]
[1773517315014,0.045059,70728.0,70710.0,0.08814835]
[1773517315214,0.045059,70728.0,70715.0,0.042417]
[1773517315405,0.045059,70728.0,70718.0,0.07385918]
[1773517315406,0.00125,70728.0,70718.0,0.07385918]
[1773517315605,0.033658,70730.0,70718.0,0.11627418]
[1773517315806,0.00156,70734.0,70724.0,0.042411]
[1773517321018,0.00156,70734.0,70725.0,0.04241]
[1773517321718,0.00156,70734.0,70723.0,0.042412]
[1773517322121,0.00156,70735.0,70723.0,0.042412]
[1773517322618,0.00156,70735.0,70723.0,0.05530117]
[1773517323615,0.00156,70735.0,70723.0,0.05686117]
[1773517324319,0.00156,70735.0,70724.0,0.042411]
[1773517325322,0.042405,70736.0,70724.0,0.042411]
[1773517328520,0.00156,70739.0,70725.0,0.01288917]
[1773517328723,0.01125,70744.0,70729.0,0.07385918]
[1773517329025,0.01125,70744.0,70729.0,0.08674835]
[1773517329225,0.01281,70744.0,70732.0,0.042406]
[1773517329922,0.01281,70744.0,70730.0,0.07536367]
[1773517329923,0.01125,70744.0,70730.0,0.07536367]
[1773517330127,0.00015061,70747.0,70736.0,0.042404]
[1773517330624,0.00015061,70747.0,70737.0,0.00156]
[1773517331013,0.042397,70749.0,70737.0,0.00156]
[1773517334819,0.042395,70751.0,70737.0,0.00156]
[1773517335032,0.00156,70751.0,70740.0,0.07380367]
[1773517335325,0.01281,70753.0,70741.0,0.042401]
[1773517335931,0.01281,70753.0,70737.0,0.01444917]
[1773517336128,0.00156,70753.0,70737.0,0.01444917]
[1773517336432,0.01279274,70760.0,70737.0,0.01444917]
[1773517336626,0.01435274,70759.0,70737.0,0.01444917]
[1773517337030,0.042393,70756.0,70737.0,0.01444917]
[1773517337719,0.00156,70755.0,70742.0,0.0424]
[1773517337921,0.053639,70762.0,70741.0,0.01288917]
[1773517338126,0.00156,70760.0,70741.0,0.01288917]
[1773517338728,0.04395,70760.0,70746.0,0.042398]
[1773517339325,0.04239,70760.0,70747.0,0.00156]
[1773517342033,0.042391,70759.0,70747.0,0.00156]
[1773517350637,0.05506892,70759.0,70747.0,0.00156]
[1773517360445,0.05506892,70759.0,70746.0,0.042398]
[1773517360843,0.01267792,70759.0,70740.0,0.08704844]
[1773517361239,0.01267792,70759.0,70747.0,0.042397]
[1773517363241,0.01267792,70759.0,70747.0,0.043957]